Workbook

Sheet 入力 (hidden)
A1: ①要約版の年月日
A2: 年 | B2: 月(報告月） | C2: 日（報告日）
A3: 令和6 | B3: 5 | C3: 30
A5: ②全国との比較
A6: ↓該当年度に入力
B7: S63 | C7: H1 | D7: H2 | E7: H3 | F7: H4 | G7: H5 | H7: H6 | I7: H7 | J7: H8 | K7: H9 | L7: H10 | M7: H11 | N7: H12 | O7: H13 | P7: H14 | Q7: H15 | R7: H16 | S7: H17 | T7: H18 | U7: H19 | V7: H20 | W7: H21 | X7: H22 | Y7: H23 | Z7: H24 | AA7: H25 | AB7: H26 | AC7: H27 | AD7: H28 | AE7: H29 | AF7: H30 | AG7: R1 | AH7: R2 | AI7: R3 | AJ7: R4 | AK7: R5 | AL7: R6
A8: 全国（千戸） | B8: 1663 | C8: 1672 | D8: 1665 | E8: 1343 | F8: 1419 | G8: 1509 | H8: 1560 | I8: 1484 | J8: 1630 | K8: 1341 | L8: 1180 | M8: 1226 | N8: 1213 | O8: 1173 | P8: 1146 | Q8: =Q9/1000 -> 1173.649 | R8: =R9/1000 -> 1193.038 | S8: 1249.366 | T8: =T9/1000 -> 1285.246 | U8: 1035.598 | V8: 1039.18 | W8: 775.277 | X8: 819.02 | Y8: 841.246 | Z8: 893 | AA8: 987.254 | AB8: =AB9/1000 -> 880.47 | AC8: 920.537 | AD8: =AD9/1000 -> 974.137 | AE8: 946.396 | AF8: 952.936 | AG8: 883.687 | AH8: 812.164 | AI8: 865.909 | AJ8: =AJ9/1000 -> 860.828 | AK8: =AK9/1000 -> 800.176 | AL8: =AL9/1000 -> 816.018
A9: 全国 | Q9: 1173649 | R9: 1193038 | S9: 1249366 | T9: 1285246 | U9: 1035598 | V9: 1039180 | W9: 775277 | X9: 819020 | Y9: 841246 | Z9: 893002 | AA9: 987254 | AB9: 880470 | AC9: 920537 | AD9: 974137 | AE9: 946396 | AF9: 952936 | AG9: 883687 | AH9: 812164 | AI9: 865909 | AJ9: 860828 | AK9: 800176 | AL9: 816018
A10: 三重県 | B10: 17629 | C10: 20855 | D10: 21169 | E10: 19054 | F10: 19871 | G10: 21430 | H10: 21151 | I10: 19583 | J10: 24083 | K10: 19553 | L10: 16825 | M10: 15887 | N10: 15473 | O10: 15430 | P10: 13678 | Q10: 14296 | R10: 15622 | S10: 16400 | T10: 19978 | U10: 17092 | V10: 17066 | W10: 10608 | X10: 10084 | Y10: 9360 | Z10: 9777 | AA10: 10858 | AB10: 9734 | AC10: 10066 | AD10: 10812 | AE10: 9894 | AF10: 10613 | AG10: 10450 | AH10: 9508 | AI10: 10077 | AJ10: 9907 | AK10: 8859 | AL10: 8040
B12: 前年度 | C12: 本年度 | D12: 増 △減
A13: 全国 | B13: 800 | C13: 816 | D13: =C13-B13 -> 16 | E13: ←全国（千戸）
A14: 全国 | B14: 800176 | C14: 816018 | D14: =C14-B14 -> 15842
A15: 三重県 | B15: 8859 | C15: 8040 | D15: =C15-B15 -> -819
A17: 増→ | B17: =COUNTIF(D13,">0")+COUNTIF(D15,">0") -> 1
A18: △減→ | B18: =COUNTIF(D13,"<0")+COUNTIF(D15,"<0") -> 1
A20: 文脈製作↓
A21: =IF(D13>0,A13,"") -> 全国 | C21: =CONCATENATE(A21,A22,A23,A24,A25,A26,A27,A28,A29) -> 全国が増加し、 三重県が減少
A22: =IF(D13<=0,"",IF(B17=2,"、","が増加")) -> が増加
A23: =IF(D15>0,A15,"") -> 
A24: =IF(D15<=0,"",IF(B17=2,"ともに増加","が増加")) -> 
A25: =IF(B17=0,"",IF(B18>0,"し、","")) -> し、
A26: =IF(D13<0,A14,"") -> 
A27: =IF(B18=0,"",IF(B18=2,"、"," ")) -> 
A28: =IF(D15<0,A15,"") -> 三重県
A29: =IF(B18=0,"",IF(B18=2,"ともに減少","が減少")) -> が減少
A32: ③利用関係別
A33: ⅰ）２ヶ年比較
B34: 前年度 | C34: 本年度 | D34: 増 △減
A35: 持家 | B35: 4250 | C35: 4447 | D35: =C35-B35 -> 197
A36: 貸家 | B36: 3228 | C36: 2501 | D36: =C36-B36 -> -727
A37: 給与住宅 | B37: 74 | C37: 58 | D37: =C37-B37 -> -16
A38: 分譲住宅 | B38: 1307 | C38: 1034 | D38: =C38-B38 -> -273
A40: 増→ | B40: =COUNTIF(D35:D38,">0") -> 1
A41: △減→ | B41: =COUNTIF(D35:D38,"<0") -> 3
A43: 文脈製作↓
A44: =IF(D35>0,A35,"") -> 持家 | C44: =CONCATENATE(A44,A45,A46,A47,A48,A49,A50,A51,A52,A53,A54,A55,A56,A57,A58,A59,A60) -> 持家のみ増加、貸家、給与住宅、分譲住宅が減少 | F44: ←H２５年度は直接入力
A45: =IF(D35<=0,"",IF(B40>=2,"、",IF(B40=1,"のみ増加",""))) -> のみ増加
A46: =IF(D36>0,A36,"") -> 
A47: =IF(D36<=0,"",IF(B40>=3,"が増加、",IF(B40=1,"のみ増加",IF(D35>=0&B40=2,"が増加","が増加し、")))) -> 
A48: =IF(D37>0,A37,"") -> 
A49: =IF(D37<=0,"",IF(B40=4,"、",IF(B40=1,"のみ増加",IF(D38<=0,"が増加","、")))) -> 
A50: 、
A51: =IF(D38<=0,"",IF(B40=1,"のみ増加し、",IF(B40=4,"のすべてで増加","が増加し、"))) -> 
A52: =IF(B41>0,"","") -> 
A53: =IF(D35<0,A35,"") -> 
A54: =IF(D35>=0,"",IF(B41>=2,"、",IF(B41=1,"のみ減少",""))) -> 
A55: =IF(D36<0,A36,"") -> 貸家
A56: =IF(D36>=0,"",IF(B41>=3,"、",IF(B41=1,"のみ減少",IF(B41=2&D35>0,"が減少","、")))) -> 、
A57: =IF(D37<0,A37,"") -> 給与住宅
A58: =IF(D37>=0,"",IF(B41=4,"、",IF(B41=1,"のみ減少",IF(D38>=0,"が減少","、")))) -> 、
A59: =IF(D38<0,A38,"") -> 分譲住宅
A60: =IF(D38>=0,"",IF(B41=4,"のすべてで減少","が減少")) -> が減少
A63: ⅱ）グラフ用 | B63: 戸あたり床面積
A64: ↓該当年度に入力
B65: S63 | C65: H1 | D65: H2 | E65: H3 | F65: H4 | G65: H5 | H65: H6 | I65: H7 | J65: H8 | K65: H9 | L65: H10 | M65: H11 | N65: H12 | O65: H13 | P65: H14 | Q65: H15 | R65: H16 | S65: H17 | T65: H18 | U65: H19 | V65: H20 | W65: H21 | X65: H22 | Y65: H23 | Z65: H24 | AA65: H25 | AB65: H26 | AC65: H27 | AD65: H28 | AE65: H29 | AF65: H30 | AG65: R1 | AH65: R2 | AI65: R3 | AJ65: R4 | AK65: R5 | AL65: R6
A66: 持家 | B66: 131.7 | C66: 135.1 | D66: 137 | E66: 139.1 | F66: 139.2 | G66: 139.5 | H66: 140.5 | I66: 141 | J66: 144.4 | K66: 143.8 | L66: 143.1 | M66: 143.1 | N66: 141.9 | O66: 140.1 | P66: 137.6 | Q66: 136.9 | R66: 135.5 | S66: 135.7 | T66: 134 | U66: 133.9 | V66: 131 | W66: 130.2 | X66: 128.4 | Y66: 127.6 | Z66: 127.5 | AA66: 127 | AB66: 126.1 | AC66: 125.2 | AD66: 124.6 | AE66: 122.3 | AF66: 121.9 | AG66: 120.1 | AH66: 119.6 | AI66: =614835/5213 -> 117.9426434 | AJ66: 115.2 | AK66: 112.8 | AL66: 112.3
A67: 貸家 | B67: 46.2 | C67: 44.5 | D67: 44.2 | E67: 43.9 | F67: 45.6 | G67: 46.8 | H67: 45.3 | I67: 48.3 | J67: 47.8 | K67: 45.1 | L67: 46.2 | M67: 51.7 | N67: 52.2 | O67: 50.7 | P67: 51.4 | Q67: 49.5 | R67: 44.3 | S67: 42.8 | T67: 38.6 | U67: 39.6 | V67: 39.6 | W67: 49.4 | X67: 56.9 | Y67: 57.8 | Z67: 55.1 | AA67: 54.8 | AB67: 54 | AC67: 53 | AD67: 51.5 | AE67: 51.6 | AF67: 48.1 | AG67: 47.5 | AH67: 47.5 | AI67: =152637/3360 -> 45.42767857 | AJ67: 43.9 | AK67: 46.8 | AL67: 48.9
A68: 給与住宅 | B68: 64.5 | C68: 63.5 | D68: 61 | E68: 53.3 | F68: 58.8 | G68: 66.9 | H68: 65.3 | I68: 56.5 | J68: 59.4 | K68: 55.8 | L68: 70.3 | M68: 70.1 | N68: 75.6 | O68: 60.1 | P68: 63.2 | Q68: 52.3 | R68: 77.6 | S68: 48.5 | T68: 43.3 | U68: 53.1 | V68: 58.6 | W68: 73.3 | X68: 103.6 | Y68: 67.1 | Z68: 95.1 | AA68: 132.4 | AB68: 92.4 | AC68: 86.9 | AD68: 54.6 | AE68: 44.2 | AF68: 53.1 | AG68: 40.7 | AH68: 36.9 | AI68: =8120/170 -> 47.76470588 | AJ68: 61.6 | AK68: 61.8 | AL68: 71.8
A69: 分譲住宅 | B69: 99.7 | C69: 101.9 | D69: 99.9 | E69: 103.3 | F69: 102.5 | G69: 104.9 | H69: 101.3 | I69: 100.1 | J69: 109.3 | K69: 109.6 | L69: 106.6 | M69: 112.7 | N69: 112.9 | O69: 113.4 | P69: 110.2 | Q69: 109.5 | R69: 108.1 | S69: 106.9 | T69: 107.9 | U69: 103.9 | V69: 109.6 | W69: 113.6 | X69: 109.6 | Y69: 113.3 | Z69: 109.6 | AA69: 112 | AB69: 108.1 | AC69: 108.3 | AD69: 111.5 | AE69: 108 | AF69: 109.2 | AG69: 110.8 | AH69: 104.1 | AI69: =146586/1334 -> 109.8845577 | AJ69: 100.5 | AK69: 100.1 | AL69: 101.1
A70: 平均 | B70: 102.2 | C70: 100.4 | D70: 101 | E70: 99.7 | F70: 96.5 | G70: 98.9 | H70: 105.1 | I70: 101.9 | J70: 105.3 | K70: 98.2 | L70: 104 | M70: 112.3 | N70: 107.2 | O70: 100.3 | P70: 103.2 | Q70: 98.9 | R70: 96.3 | S70: 87.5 | T70: 80.7 | U70: 84.1 | V70: 81.1 | W70: 99.1 | X70: 106.6 | Y70: 109 | Z70: 107.7 | AA70: 106.5 | AB70: 101.8 | AC70: 99.2 | AD70: 95.3 | AE70: 96.1 | AF70: 93.4 | AG70: 92 | AH70: 94.1 | AI70: =922178/10077 -> 91.51314875 | AJ70: 88.5 | AK70: 86.5 | AL70: 90.8
B72: 前年度 | C72: 本年度 | D72: 増 △減
A73: 持家 | B73: 112.8 | C73: 112.3 | D73: =C73-B73 -> -0.5 | E73: =-5 -> -5
A74: 貸家 | B74: 46.8 | C74: 48.9 | D74: =C74-B74 -> 2.1 | E74: -5
A75: 給与住宅 | B75: 61.8 | C75: 71.8 | D75: =C75-B75 -> 10
A76: 分譲住宅 | B76: 100.1 | C76: 101.1 | D76: =C76-B76 -> 1
A78: 増→ | B78: =COUNTIF(D73:D76,">0") -> 3
A79: △減→ | B79: =COUNTIF(D73:D76,"<0") -> 1
A81: 文脈製作↓
A82: 戸あたり床面積は | C82: =CONCATENATE(A82,A83,A84,A85,A86,A87,A88,A89,A90,A91,A92,A93,A94,A95,A96,A97,A98,A99) -> 戸あたり床面積は貸家、給与住宅、分譲住宅が増加し、持家のみ減少
A83: =IF(D73>0,A73,"") -> 
A84: =IF(D73<=0,"",IF(B78>=2,"、",IF(B78=1,"のみ増加",""))) -> 
A85: =IF(D74>0,A74,"") -> 貸家
A86: =IF(D74<=0,"",IF(B78>=3,"、",IF(B78=1,"のみ増加",IF(D73>=0&B78=2,"が増加","、")))) -> 、
A87: =IF(D75>0,A75,"") -> 給与住宅
A88: =IF(D75<=0,"",IF(B78=4,"、",IF(B78=1,"のみ増加",IF(D76<=0,"が増加","、")))) -> 、
A89: =IF(D76>0,A76,"") -> 分譲住宅
A90: =IF(D76<=0,"",IF(B78=1,"のみ増加",IF(B78=4,"のすべてで増加","が増加し"))) -> が増加し
A91: =IF(B79>0,"、","") -> 、
A92: =IF(D73<0,A73,"") -> 持家
A93: =IF(D73>=0,"",IF(B79>=2,"、",IF(B79=1,"のみ減少",""))) -> のみ減少
A94: =IF(D74<0,A74,"") -> 
A95: =IF(D74>=0,"",IF(B79>=3,"、",IF(B79=1,"のみ減少",IF(AND(B79=2,D73<0),"が減少","、")))) -> 
A96: =IF(D75<0,A75,"") -> 
A97: =IF(D75>=0,"",IF(B79=4,"、",IF(B79=1,"のみ減少",IF(D76>=0,"が減少","、")))) -> 
A98: =IF(D76<0,A76,"") -> 
A99: =IF(D76>=0,"",IF(B79=4,"のすべてで減少","が減少")) -> 
A102: ④建て方別
B103: 前年度 | C103: 本年度 | D103: 増 △減
A104: 一戸建 | B104: 5337 | C104: 5390 | D104: =C104-B104 -> 53
A105: 長屋 | B105: 1082 | C105: 1116 | D105: =C105-B105 -> 34
A106: 共同住宅 | B106: 2440 | C106: 1534 | D106: =C106-B106 -> -906
A108: 増→ | B108: =COUNTIF(D104:D106,">0") -> 2
A109: △減→ | B109: =COUNTIF(D104:D106,"<0") -> 1
A111: 文脈製作↓
A112: =IF(D104>0,A104,"") -> 一戸建 | C112: =CONCATENATE(A112,A113,A114,A115,A116,A117,A118,A119,A120,A121,A122,A123) -> 一戸建、長屋が増加、、共同住宅
A113: =IF(D104<=0,"",IF(B108>=2,"、",IF(B108=1,"のみ増加し、",""))) -> 、
A114: =IF(D105>0,A105,"") -> 長屋
A115: =IF(D105<=0,"",IF(B108>=3,"、",IF(B108=1,"のみ増加",IF(AND(B108=2,D106<0),"が増加","、")))) -> が増加
A116: =IF(D106>0,A106,"") -> 
A117: =IF(D106<=0,"",IF(B108=3,"のすべてで増加","が増加し")) -> 
A118: =IF(B109=0,"","、") -> 、
A119: =IF(D104<0,A104,"") -> 
A120: =IF(D104>=0,"",IF(B109>=2,"、",IF(B109=1,"のみ減少",""))) -> 
A121: =IF(D105<0,A105,"") -> 
A122: =IF(D105>=0,"、",IF(B109>=3,"、",IF(B109=1,"のみ減少",IF(B109=2&D104<0,"が減少","")))) -> 、
A123: =IF(D106<0,A106,"") -> 共同住宅
A124: =IF(D106>=0,"が減少",IF(B109=3,"のすべてで減少","が減少")) -> が減少
A127: ⑤構造別
B128: 前年度 | C128: 本年度 | D128: 増 △減
A129: 木造 | B129: 5889 | C129: 6240 | D129: =C129-B129 -> 351
A130: SRC造 | B130: 0 | C130: 14 | D130: =C130-B130 -> 14
A131: RC造 | B131: 1224 | C131: 624 | D131: =C131-B131 -> -600
A132: 鉄骨造 | B132: 1744 | C132: 1160 | D132: =C132-B132 -> -584
A133: その他 | B133: 2 | C133: 2 | D133: =C133-B133 -> 0
A135: 増→ | B135: =COUNTIF(D129:D132,">0") -> 2
A136: △減→ | B136: =COUNTIF(D129:D132,"<0") -> 2
A138: 文脈製作↓
A139: =IF(D129>0,A129,"") -> 木造 | C139: =CONCATENATE(A139,A140,A141,A142,A143,A144,A145,A146,A147,A148,A149,A150,A151,A152,A153,A154,A155) -> 木造、SRC造が増加し、RC造、鉄骨造が減少
A140: =IF(D129<=0,"",IF(B135>=2,"、",IF(B135=1,"のみ増加し、",""))) -> 、
A141: =IF(D130>0,A130,"") -> SRC造
A142: =IF(D130<=0,"",IF(B135>=3,"、",IF(B135=1,"のみ増加",IF(B135=2&D129>0,"が増加し","、")))) -> が増加し
A144: =IF(D131<=0,"",IF(B135=4,"、",IF(B135=1,"のみ増加し、",IF(D132<=0,"が増加","、")))) -> 
A145: =IF(D132>0,A132,"") -> 
A146: =IF(D132<=0,"",IF(B135=1,"のみ増加",IF(B135=4,"のすべてで増加","が増加し"))) -> 
A147: =IF(B136>0,"","") -> 
A148: =IF(D129<0,A129,"") -> 
A149: =IF(D129>=0,"",IF(B136>=2,"、",IF(B136=1,"のみ減少",""))) -> 
A150: =IF(D130<0,A130,"") -> 
A151: 、
A152: =IF(D131<0,A131,"") -> RC造
A153: 、
A154: 鉄骨造
A155: が減少

Sheet 要約版
G2: 2025-05-30
F3: =入力!A3&"年度要約版" -> 令和6年度要約版
F6: 三重県の住宅着工状況
A9: 1．新設住宅戸数（全国比）
A12: ="● "&入力!C21 -> ● 全国が増加し、 三重県が減少
H13: 単位： 戸
C14: 令和5年度 | E14: 令和6年度 | G14: 増 △減
B15: 全国 | C15: =入力!B14 -> 800176 | E15: =入力!C14 -> 816018 | G15: =""&IF(入力!C14-入力!B14<0,"△"," ") ->  | H15: =ABS(入力!D14) -> 15842
B16: 三重県 | C16: =入力!B15 -> 8859 | E16: =入力!C15 -> 8040 | G16: =""&IF(入力!C15-入力!B15<0,"△"," ") -> △ | H16: =ABS(入力!D15) -> 819
A33: 2．利用関係別
A36: ="● "&入力!C44 -> ● 持家のみ増加、貸家、給与住宅、分譲住宅が減少
H37: 単位： 戸
C38: 令和5年度 | E38: ="令和6年度" -> 令和6年度 | G38: 増 △減
B39: 持家 | C39: =入力!B35 -> 4250 | E39: =入力!C35 -> 4447 | G39: =""&IF(入力!C35-入力!B35<0,"△"," ") ->  | H39: =ABS(入力!D35) -> 197
B40: 貸家 | C40: =入力!B36 -> 3228 | E40: =入力!C36 -> 2501 | G40: =""&IF(入力!C36-入力!B36<0,"△"," ") -> △ | H40: =ABS(入力!D36) -> 727
B41: 給与住宅 | C41: =入力!B37 -> 74 | E41: =入力!C37 -> 58 | G41: =""&IF(入力!C37-入力!B37<0,"△"," ") -> △ | H41: =ABS(入力!D37) -> 16
B42: 分譲住宅 | C42: =入力!B38 -> 1307 | E42: =入力!C38 -> 1034 | G42: =""&IF(入力!C38-入力!B38<0,"△"," ") -> △ | H42: =ABS(入力!D38) -> 273
A44: ="● "&入力!C82 -> ● 戸あたり床面積は貸家、給与住宅、分譲住宅が増加し、持家のみ減少
A62: 3．建て方別
A65: ● 一戸建、長屋建が増加、共同住宅が減少
H66: 単位： 戸
C67: ="令和5年度" -> 令和5年度 | E67: ="令和6年度" -> 令和6年度 | G67: 増 △減
B68: 一戸建 | C68: =入力!B104 -> 5337 | E68: =入力!C104 -> 5390 | G68: =""&IF(入力!C104-入力!B104<0,"△"," ") ->  | H68: =ABS(入力!D104) -> 53
B69: 長屋建 | C69: =入力!B105 -> 1082 | E69: =入力!C105 -> 1116 | G69: =""&IF(入力!C105-入力!B105<0,"△"," ") ->  | H69: =ABS(入力!D105) -> 34
B70: 共同住宅 | C70: =入力!B106 -> 2440 | E70: =入力!C106 -> 1534 | G70: =""&IF(入力!C106-入力!B106<0,"△"," ") -> △ | H70: =ABS(入力!D106) -> 906
A87: 4．構造別
A90: ● 木造、SRC造が増加し、RC造、鉄骨造が減少
H91: 単位： 戸
C92: ="令和5年度" -> 令和5年度 | E92: ="令和6年度" -> 令和6年度 | G92: 増 △減
B93: 木造 | C93: =入力!B129 -> 5889 | E93: =入力!C129 -> 6240 | G93: =""&IF(入力!C129-入力!B129<0,"△"," ") ->  | H93: =ABS(入力!D129) -> 351
B94: ＳＲＣ造 | C94: =入力!B130 -> 0 | E94: =入力!C130 -> 14 | G94: =""&IF(入力!C130-入力!B130<0,"△"," ") ->  | H94: =ABS(入力!D130) -> 14
B95: ＲＣ造 | C95: =入力!B131 -> 1224 | E95: =入力!C131 -> 624 | G95: =""&IF(入力!C131-入力!B131<0,"△"," ") -> △ | H95: =ABS(入力!D131) -> 600
B96: 鉄骨造 | C96: =入力!B132 -> 1744 | E96: =入力!C132 -> 1160 | G96: =""&IF(入力!C132-入力!B132<0,"△"," ") -> △ | H96: =ABS(入力!D132) -> 584
B97: その他 | C97: =入力!B133 -> 2 | E97: =入力!C133 -> 2 | G97: =""&IF(入力!C133-入力!B133<0,"△"," ") ->  | H97: =ABS(入力!D133) -> 0

Sheet 簡起 (hidden)
A1: 伺 い ・ 供 覧 | B1: 分 類 記 号 | C1: 54201 - 900000194 10 | F1: 保 存 期 間 | G1: 5 | I1: 保 存 区 分 | J1: 通常 手元 | K1: =" 次のとおり"&入力!A3&"年度要約版の情報提供をしてよろしいか伺います。" -> 次のとおり令和6年度要約版の情報提供をしてよろしいか伺います。
B2: 起 案 供 覧 | C2: =TODAY() -> 2025-06-09 | F2: 処 理 期 限 | G2: 平成 年 月 日
B3: 決 裁 供覧済 | C3: 平成 年 月 日 | F3: 発 信 年月日 | G3: 平成 年 月 日
B4: 取 扱 区 分 | C4: 通常、ＦＡＸ、Ｅメール
A5: 決 裁 欄 | B5: 部 長 | D5: 理 事 | E5: 総括室長 | F5: 室 長
B8: 住まい支援グループ
B9: 副室長 | D9: 主 幹 | E9: 主 査 | H9: 担当 | K9: 【担当】 住まい支援グループ 前川

Sheet Sheet1 (hidden)
